fUSD/lending_fUSD_20251225
["ID","MTS","AMOUNT","RATE_DAILY","PERIOD"]
[399813928,1766694640613,-250.0,0.00016149,2]
[399813929,1766694640622,-500.0,0.00016149,2]
[399813930,1766694640631,-283.18901002,0.00016149,2]
[399813931,1766694640641,-250.0,0.00016149,2]
[399813932,1766694640651,-250.0,0.00016149,2]
[399813933,1766694640660,-500.0,0.00016149,2]
[399813934,1766694640670,-250.0,0.00016149,2]
[399813935,1766694640680,-500.0,0.00016149,2]
[399813936,1766694640690,-250.0,0.00016149,2]
[399813937,1766694640699,-250.0,0.00016149,2]
[399813938,1766694640708,-578.20924308,0.00016149,2]
[399813939,1766694640718,-250.0,0.00016149,2]
[399813940,1766694640727,-250.0,0.00016149,2]
[399813941,1766694640736,-250.0,0.00016149,2]
[399813942,1766694640745,-250.0,0.00016149,2]
[399813943,1766694640755,-1500.0,0.00016149,2]
[399813944,1766694640764,-250.0,0.00016149,2]
[399813945,1766694640774,-620.0,0.00016149,2]
[399813946,1766694640783,-1500.0,0.00016149,2]
[399813947,1766694640793,-250.0,0.00016149,2]
[399813948,1766694640805,-1500.0,0.00016149,2]
[399813949,1766694640815,-250.0,0.00016149,2]
[399813950,1766694640824,-1500.0,0.00016149,2]
[399813951,1766694640834,-250.0,0.00016149,2]
[399813952,1766694640846,-1500.0,0.00016149,2]
[399813953,1766694640855,-250.0,0.00016149,2]
[399813954,1766694640864,-151.0,0.00016149,2]
[399813955,1766694640875,-1500.0,0.00016149,2]
[399813956,1766694640884,-250.0,0.00016149,2]
[399813957,1766694640894,-1500.0,0.00016149,2]
[399813958,1766694640903,-250.0,0.00016149,2]
[399813959,1766694640914,-1500.0,0.00016149,2]
[399813960,1766694640924,-250.0,0.00016149,2]
[399813961,1766694640934,-1500.0,0.00016149,2]
[399813962,1766694640943,-250.0,0.00016149,2]
[399813963,1766694640953,-1500.0,0.00016149,2]
[399813964,1766694640962,-250.0,0.00016149,2]
[399813965,1766694640971,-1500.0,0.00016149,2]
[399813966,1766694640982,-250.0,0.00016149,2]
[399813967,1766694640993,-200.0,0.00016149,2]
[399813968,1766694641002,-207.4,0.00016149,2]
[399813969,1766694641012,-215.0738,0.00016149,2]
[399813970,1766694641022,-223.0315306,0.00016149,2]
[399813971,1766694641031,-231.28369723,0.00016149,2]
[399813972,1766694641041,-239.84119403,0.00016149,2]
[399813973,1766694641051,-248.71531821,0.00016149,2]
[399813974,1766694641060,-257.91778498,0.00016149,2]
[399813975,1766694641070,-267.46074303,0.00016149,2]
[399813976,1766694641080,-277.35679052,0.00016149,2]
[399813977,1766694641090,-150.0,0.00016182,2]
[399813978,1766694641099,-500.0,0.00016183,2]
[399813979,1766694641109,-500.0,0.00016183,2]
[399813980,1766694641119,-500.0,0.00016183,2]
[399813981,1766694641128,-500.0,0.00016183,2]
[399813982,1766694641138,-500.0,0.00016183,2]
[399813983,1766694641148,-168.29544961,0.00016183,2]
[399813984,1766694641157,-500.0,0.00016183,2]
[399813985,1766694641167,-500.0,0.00016183,2]
[399813986,1766694641177,-500.0,0.00016183,2]
[399813987,1766694641186,-500.47443561,0.00016183,2]
[399813988,1766694641196,-500.19210667,0.00016183,2]
[399813989,1766694641207,-500.56420784,0.00016183,2]
[399813990,1766694641216,-500.0,0.00016183,2]
[399813991,1766694641226,-500.0,0.00016183,2]
[399813992,1766694641235,-515.54072242,0.00016183,2]
[399813993,1766694641245,-500.0,0.00016183,2]
[399813994,1766694641255,-206.73807968,0.00016183,2]
[399813995,1766694641265,-500.0,0.00016183,2]
[399813996,1766694641274,-500.0,0.00016183,2]
[399813997,1766694641284,-500.0,0.00016183,2]
[399813998,1766694641294,-500.0,0.00016183,2]
[399813999,1766694641304,-500.0,0.00016183,2]
[399814000,1766694641314,-230.84233683,0.00016183,2]
[399814001,1766694641323,-500.0,0.00016183,2]
[399814002,1766694641333,-500.0,0.00016183,2]
[399814003,1766694641343,-500.19412823,0.00016183,2]
[399814004,1766694641353,-500.0,0.00016183,2]
[399814005,1766694641363,-160.28765505,0.00016183,2]
[399814006,1766694641372,-160.176,0.00016183,2]
[399814007,1766694641382,-160.67148555,0.00016183,2]
[399814008,1766694641392,-500.0,0.00016183,2]
[399814009,1766694641401,-590.45626287,0.00016183,2]
[399814010,1766694641411,-330.95210177,0.00016183,2]
[399814011,1766694641421,-500.0,0.00016183,2]
[399814012,1766694641431,-500.0,0.00016183,2]
[399814013,1766694641441,-500.88574741,0.00016183,2]
[399814014,1766694641451,-160.28775802,0.00016183,2]
[399814015,1766694641460,-160.28551418,0.00016183,2]
[399814016,1766694641470,-500.27358903,0.00016183,2]
[399814017,1766694641479,-160.2829779,0.00016183,2]
[399814018,1766694641489,-333.70058283,0.00016183,2]
[399814019,1766694641498,-500.27931325,0.00016183,2]
[399814020,1766694641508,-500.0,0.00016183,2]
[399814021,1766694641518,-500.0,0.00016183,2]
[399814022,1766694641527,-500.0,0.00016183,2]
[399814023,1766694641790,-509.7886489,0.00016183,2]
[399814024,1766694641803,-160.28109585,0.00016183,2]
[399814025,1766694641813,-160.27588239,0.00016183,2]
[399814026,1766694641822,-160.286897,0.00016183,2]
[399814027,1766694641832,-160.28200119,0.00016183,2]
[399814028,1766694641843,-168.21782,0.00016183,2]
[399814029,1766694641852,-160.2827953,0.00016183,2]
[399814030,1766694641863,-500.0,0.00016183,2]
[399814031,1766694641874,-500.0,0.00016183,2]
[399814032,1766694641884,-500.0,0.00016183,2]
[399814033,1766694641894,-500.67181276,0.00016183,2]
[399814034,1766694641904,-500.0,0.00016183,2]
[399814035,1766694641915,-500.0,0.00016183,2]
[399814036,1766694641924,-165.66029733,0.00016183,2]
[399814037,1766694641934,-551.71631931,0.00016183,2]
[399814038,1766694641943,-500.0,0.00016183,2]
[399814039,1766694641954,-161.71749088,0.00016183,2]
[399814040,1766694641963,-500.0,0.00016183,2]
[399814041,1766694641973,-307.46227328,0.00016183,2]
[399814042,1766694641982,-282.75737682,0.00016183,2]
[399814043,1766694641993,-500.0,0.00016183,2]
[399814044,1766694642003,-163.80128697,0.00016183,2]
[399814045,1766694642012,-500.18172396,0.00016183,2]
[399814046,1766694642023,-500.0,0.00016183,2]
[399814047,1766694642032,-500.0,0.00016183,2]
[399814048,1766694642042,-164.92711325,0.00016183,2]
[399814049,1766694642052,-500.0,0.00016183,2]
[399814050,1766694642062,-500.0,0.00016183,2]
[399814051,1766694642071,-500.0,0.00016183,2]
[399814052,1766694642081,-506.42109494,0.00016183,2]
[399814053,1766694642090,-500.0,0.00016183,2]
[399814054,1766694642100,-329.37103427,0.00016183,2]
[399814055,1766694642110,-483.31289544,0.00016183,2]
[399814056,1766694642119,-378.15038662,0.00016183,2]
[399814057,1766694642129,-500.0,0.00016183,2]
[399814058,1766694642139,-500.0,0.00016183,2]
[399814059,1766694642148,-500.0,0.00016183,2]
[399814060,1766694642159,-168.70375844,0.00016183,2]
[399814061,1766694642169,-1434.70169376,0.00016186,2]
[399814062,1766694642179,-14532.49362118,0.00016197,2]
[399814063,1766694642188,-5000.00169608,0.000162,5]
[399814064,1766694642199,-150.0,0.00016202,2]
[399814065,1766694642209,-3990.05429207,0.00016235,2]
[399814066,1766694642219,-150.0,0.00016258,2]
[399814067,1766694642228,-304.31974468,0.00016263,2]
[399814068,1766694642238,-150.0,0.00016271,2]
[399814069,1766694642249,-150.0,0.00016279,2]
[399814070,1766694642260,-150.0,0.00016307,2]
[399814071,1766694642270,-14532.49362118,0.00016314,2]
[399814072,1766694642280,-1434.70169376,0.00016329,2]
[399814073,1766694642290,-150.0,0.00016333,2]
[399814074,1766694642299,-3990.05429207,0.00016346,2]
[399814075,1766694642309,-150.0,0.00016349,2]
[399814076,1766694642319,-150.0,0.00016349,2]
[399814077,1766694642329,-150.0,0.0001636,2]
[399814078,1766694642338,-228.0,0.000164,2]
[399814079,1766694642348,-319.0,0.000164,2]
[399814080,1766694642358,-182.0,0.000164,2]
[399814081,1766694642368,-184.24951816,0.000164,2]
[399814082,1766694642378,-150.0,0.0001642,2]
[399814083,1766694642389,-150.0,0.0001642,2]
[399814085,1766694642399,-150.0,0.0001642,2]
[399814087,1766694642408,-304.31974468,0.00016423,2]
[399814088,1766694642418,-174.21218051,0.00016423,2]
[399814089,1766694642428,-14532.49362118,0.00016431,2]
[399814090,1766694642438,-715.31,0.00016437,2]
[399814091,1766694642448,-500.0,0.00016438,2]
[399814092,1766694642457,-500.0,0.00016438,2]
[399814093,1766694642467,-500.0,0.00016438,2]
[399814095,1766694642477,-500.0,0.00016438,2]
[399814097,1766694642487,-500.0,0.00016438,2]
[399814100,1766694642497,-500.0,0.00016438,2]
[399814101,1766694642506,-500.0,0.00016438,2]
[399814102,1766694642516,-500.0,0.00016438,2]
[399814103,1766694642525,-500.0,0.00016438,2]
[399814104,1766694642535,-500.0,0.00016438,2]
[399814105,1766694642544,-500.0,0.00016438,2]
[399814106,1766694642555,-500.0,0.00016438,2]
[399814107,1766694642565,-202.25118103,0.00016438,2]
[399814108,1766694642574,-500.0,0.00016438,2]
[399814109,1766694642584,-500.0,0.00016438,2]
[399814110,1766694642594,-500.0,0.00016438,2]
[399814111,1766694642603,-500.0,0.00016438,2]
[399814112,1766694642612,-500.0,0.00016438,2]
[399814113,1766694642622,-500.0,0.00016438,2]
[399814114,1766694642631,-500.0,0.00016438,2]
[399814115,1766694642641,-500.0,0.00016438,2]
[399814117,1766694642651,-500.0,0.00016438,2]
[399814119,1766694642661,-500.0,0.00016438,2]
[399814120,1766694642670,-500.0,0.00016438,2]
[399814121,1766694642680,-500.0,0.00016438,2]
[399814122,1766694642689,-500.0,0.00016438,2]
[399814123,1766694642698,-500.0,0.00016438,2]
[399814125,1766694642708,-500.0,0.00016438,2]
[399814127,1766694642717,-500.0,0.00016438,2]
[399814128,1766694642727,-500.0,0.00016438,2]
[399814129,1766694642736,-500.0,0.00016438,2]
[399814130,1766694642746,-500.0,0.00016438,2]
[399814131,1766694642755,-500.0,0.00016438,2]
[399814132,1766694642764,-676.37983721,0.00016438,2]
[399814133,1766694642774,-676.37983721,0.00016438,2]
[399814134,1766694642783,-676.37983721,0.00016438,2]
[399814135,1766694642793,-676.37983721,0.00016438,2]
[399814136,1766694642807,-676.37983721,0.00016438,2]
[399814137,1766694642818,-676.37983721,0.00016438,2]
[399814138,1766694642827,-676.37983721,0.00016438,2]
[399814139,1766694642836,-676.37983721,0.00016438,2]
[399814140,1766694642846,-676.37983721,0.00016438,2]
[399814141,1766694642855,-676.37983721,0.00016438,2]
[399814142,1766694642864,-676.37983721,0.00016438,2]
[399814143,1766694642876,-676.37983721,0.00016438,2]
[399814144,1766694642885,-676.37983721,0.00016438,2]
[399814145,1766694642895,-676.37983721,0.00016438,2]
[399814146,1766694642904,-676.37983721,0.00016438,2]
[399814147,1766694642914,-676.37983721,0.00016438,2]
[399814148,1766694642923,-676.37983721,0.00016438,2]
[399814149,1766694642932,-676.37983721,0.00016438,2]
[399814150,1766694642941,-676.37983721,0.00016438,2]
[399814151,1766694642950,-676.37983721,0.00016438,2]
[399814152,1766694642960,-676.37983721,0.00016438,2]
[399814153,1766694642970,-676.37983721,0.00016438,2]
[399814154,1766694642979,-676.37983721,0.00016438,2]
[399814155,1766694642988,-676.37983721,0.00016438,2]
[399814156,1766694642998,-676.37983721,0.00016438,2]
[399814157,1766694643007,-676.37983721,0.00016438,2]
[399814158,1766694643016,-676.37983721,0.00016438,2]
[399814159,1766694643026,-676.37983721,0.00016438,2]
[399814160,1766694643035,-676.37983721,0.00016438,2]
[399814161,1766694643045,-676.37983721,0.00016438,2]
[399814162,1766694643055,-676.37983721,0.00016438,2]
[399814163,1766694643065,-676.37983721,0.00016438,2]
[399814164,1766694643075,-676.37983721,0.00016438,2]
[399814165,1766694643084,-676.37983721,0.00016438,2]
[399814167,1766694643095,-676.37983721,0.00016438,2]
[399814168,1766694643104,-676.37983721,0.00016438,2]
[399814169,1766694643115,-676.37983721,0.00016438,2]
[399814170,1766694643125,-676.37983721,0.00016438,2]
[399814171,1766694643134,-676.37983721,0.00016438,2]
[399814172,1766694643144,-676.37983721,0.00016438,2]
[399814173,1766694643154,-676.37983721,0.00016438,2]
[399814174,1766694643164,-676.37983721,0.00016438,2]
[399814175,1766694643174,-676.37983721,0.00016438,2]
[399814176,1766694643184,-676.37983721,0.00016438,2]
[399814177,1766694643194,-659.47034129,0.00016438,2]
[399814178,1766694643204,-659.47034129,0.00016438,2]
[399814179,1766694643214,-659.47034129,0.00016438,2]
[399814180,1766694643224,-659.47034129,0.00016438,2]
[399814181,1766694643233,-659.47034129,0.00016438,2]
[399814182,1766694643243,-659.47034129,0.00016438,2]
[399814183,1766694643252,-659.47034129,0.00016438,2]
[399814184,1766694643262,-659.47034129,0.00016438,2]
[399814185,1766694643272,-659.47034129,0.00016438,2]
[399814186,1766694643282,-659.47034129,0.00016438,2]
[399814187,1766694643292,-659.47034129,0.00016438,2]
[399814189,1766694643302,-659.47034129,0.00016438,2]
[399814190,1766694643312,-16448.94,0.00016438,2]
[399814191,1766694643321,-235.76832595,0.00016438,2]
[399814192,1766694643331,-716.0,0.00016438,2]
[399814193,1766694643341,-809.0,0.00016438,2]
[399814194,1766694643351,-150.0,0.0001645,2]
[399814195,1766694643360,-3990.05429207,0.00016457,2]
[399814196,1766694643370,-150.0,0.00016464,2]
[399814197,1766694643379,-1434.70169376,0.00016471,2]
[399814198,1766694643389,-1537.98162864,0.00016493,2]
[399814199,1766694643398,-150.0,0.00016501,2]
[399814200,1766694643407,-150.0,0.00016539,2]
[399814201,1766694643417,-14532.49362118,0.00016548,2]
[399814202,1766694643427,-150.0,0.00016562,2]
[399814203,1766694643436,-150.0,0.00016562,2]
[399814204,1766694643446,-150.0,0.00016562,2]
[399814205,1766694643455,-3990.05429207,0.00016568,2]
[399814206,1766694643465,-1537.98162864,0.00016575,2]
[399814207,1766694643474,-823.0,0.00016577,2]
[399814208,1766694643484,-304.31974468,0.00016582,2]
[399814209,1766694643493,-1197.0,0.00016584,2]
[399814210,1766694643504,-150.0,0.00016594,2]
[399814211,1766694643513,-1000.0,0.000166,2]
[399814212,1766694643523,-358.86034089,0.000166,2]
[399814213,1766694643532,-150.0,0.00016629,2]
[399814214,1766694643541,-1537.98162864,0.0001663,2]
[399814215,1766694643551,-1691.947,0.00016637,2]
[399814216,1766694643562,-176.381,0.00016637,2]
[399814217,1766694643571,-150.0,0.00016647,2]
[399814218,1766694643580,-500.0,0.00016659,2]
[399814219,1766694643590,-500.0,0.00016659,2]
[399814220,1766694643599,-6904.58419878,0.0001666,2]
[399814221,1766694643609,-1197.0,0.00016665,2]
[399814222,1766694643618,-14532.49362118,0.00016666,2]
[399814223,1766694643627,-3990.05429207,0.00016678,2]
[399814224,1766694643637,-1537.98162864,0.00016685,2]
[399814225,1766694643646,-151.0,0.00016697,2]
[399814226,1766694643655,-595.37131296,0.00016697,2]
[399814227,1766694643665,-150.0,0.00016703,2]
[399814228,1766694643674,-3292.0,0.00016706,2]
[399814229,1766694643684,-164.63,0.00016712,2]
[399814230,1766694643693,-150.0,0.00016718,2]
[399814231,1766694643703,-150.0,0.00016725,2]
[399814232,1766694643712,-150.0,0.00016725,2]
[399814233,1766694643722,-1000.0,0.00016728,2]
[399814234,1766694643731,-1000.0,0.0001673,2]
[399814235,1766694643740,-1000.0,0.00016731,2]
[399814236,1766694643750,-1197.0,0.00016733,2]
[399814237,1766694643759,-150.0,0.00016738,2]
[399814238,1766694643768,-200.45994766,0.00016739,2]
[399814239,1766694643777,-304.31974468,0.00016741,2]
[399814240,1766694643787,-1000.0,0.00016743,2]
[399814241,1766694643797,-150.0,0.00016744,2]
[399814242,1766694643807,-150.0,0.00016744,2]
[399814243,1766694643816,-604.65,0.00016747,2]
[399814244,1766694643826,-1000.0,0.00016748,2]
[399814245,1766694643835,-300.0,0.00016752,2]
[399814246,1766694643845,-1000.0,0.00016759,2]
[399814247,1766694643855,-1000.0,0.00016761,2]
[399814248,1766694643864,-150.0,0.00016763,2]
[399814249,1766694643878,-1000.0,0.00016763,2]
[399814250,1766694643888,-223.86,0.00016767,2]
[399814251,1766694643897,-1537.98162864,0.00016767,2]
[399814252,1766694643906,-300.0,0.0001677,2]
[399814253,1766694643916,-150.0,0.00016774,2]
[399814254,1766694643926,-150.0,0.00016774,2]
[399814255,1766694643935,-1000.0,0.00016777,2]
[399814256,1766694643945,-300.0,0.00016782,2]
[399814257,1766694643955,-14532.49362118,0.00016783,2]
[399814258,1766694643965,-1000.0,0.00016784,2]
[399814259,1766694643974,-3990.05429207,0.00016789,2]
[399814260,1766694643983,-1000.0,0.00016795,2]
[399814261,1766694643993,-300.0,0.00016797,2]
[399814262,1766694644002,-1000.0,0.00016798,2]
[399814263,1766694644011,-1000.0,0.00016802,2]
[399814264,1766694644020,-1000.0,0.00016803,2]
[399814265,1766694644029,-150.0,0.00016807,2]
[399814266,1766694644039,-1000.0,0.00016814,2]
[399814267,1766694644048,-1000.0,0.00016815,2]
[399814268,1766694644058,-1000.0,0.00016818,2]
[399814269,1766694644068,-1000.0,0.00016818,2]
[399814270,1766694644077,-1000.0,0.0001682,2]
[399814271,1766694644087,-1537.98162864,0.00016822,2]
[399814272,1766694644096,-150.0,0.00016826,2]
[399814273,1766694644105,-1000.0,0.00016827,2]
[399814274,1766694644115,-1000.0,0.00016827,2]
[399814275,1766694644125,-150.0,0.00016828,2]
[399814276,1766694644134,-1000.0,0.0001683,2]
[399814277,1766694644144,-150.0,0.00016836,2]
[399814278,1766694644154,-1000.0,0.0001684,2]
[399814279,1766694644165,-150.0,0.00016845,2]
[399814280,1766694644175,-214.0,0.00016846,2]
[399814281,1766694644185,-300.0,0.00016855,2]
[399814282,1766694644195,-150.0,0.00016856,2]
[399814283,1766694644205,-150.0,0.00016857,2]
[399814284,1766694644215,-160.79787959,0.00016862,2]
[399814285,1766694644224,-200.0,0.00016863,2]
[399814286,1766694644234,-200.0,0.00016864,2]
[399814287,1766694644243,-1197.0,0.00016867,2]
[399814288,1766694644253,-150.0,0.00016873,2]
[399814289,1766694644262,-150.0,0.00016881,2]
[399814290,1766694644272,-1000.0,0.00016883,2]
[399814291,1766694644282,-150.0,0.00016886,2]
[399814292,1766694644291,-150.0,0.00016897,2]
[399814293,1766694644301,-151.0,0.00016897,2]
[399814294,1766694644311,-150.0,0.00016898,2]
[399814295,1766694644321,-1926.43051864,0.000169,3]
[399814296,1766694644331,-10000.0,0.000169,2]
[399814297,1766694644341,-304.31974468,0.000169,2]
[399814298,1766694644351,-3990.05429207,0.000169,2]
[399814299,1766694644360,-174.21218051,0.000169,2]
[399814300,1766694644370,-14532.49362118,0.000169,2]
[399814301,1766694644379,-170.28248417,0.000169,2]
[399814302,1766694644389,-4210.01963503,0.000169,2]
[399814303,1766694644398,-8292.0,0.000169,2]
[399814304,1766694644407,-150.0,0.00016902,2]
[399814305,1766694644417,-1000.0,0.00016903,2]
[399814306,1766694644426,-1537.98162864,0.00016904,2]
[399814307,1766694644436,-1197.0,0.00016905,2]
[399814308,1766694644446,-1000.0,0.0001691,2]
[399814309,1766694644456,-150.0,0.00016911,2]
[399814310,1766694644466,-1000.0,0.00016911,2]
[399814311,1766694644475,-1197.0,0.00016915,2]
[399814312,1766694644485,-1197.0,0.00016916,2]
[399814313,1766694644495,-150.0,0.00016919,2]
[399814314,1766694644505,-1000.0,0.00016924,2]
[399814315,1766694644515,-150.0,0.0001693,2]
[399814316,1766694644524,-1000.0,0.00016932,2]
[399814317,1766694644534,-300.0,0.00016943,2]
[399814318,1766694644544,-150.0,0.00016945,2]
[399814319,1766694644553,-300.0,0.00016947,2]
[399814320,1766694644563,-150.0,0.00016948,2]
[399814321,1766694644572,-1000.0,0.00016952,2]
[399814322,1766694644581,-1000.0,0.00016953,2]
[399814323,1766694644591,-300.0,0.00016953,2]
[399814324,1766694644600,-150.0,0.00016954,2]
[399814325,1766694644609,-1135.94296454,0.00016954,2]
[399814326,1766694644619,-1537.98162864,0.00016959,2]
[399814327,1766694644628,-150.0,0.00016963,2]
[399814328,1766694644638,-166.68,0.00016964,2]
[399814329,1766694644648,-1000.0,0.00016966,2]
[399814330,1766694644658,-150.0,0.00016973,2]
[399814331,1766694644667,-150.0,0.00016973,2]
[399814332,1766694644677,-1197.0,0.00016976,2]
[399814333,1766694644687,-150.0,0.00016979,2]
[399814334,1766694644696,-1000.0,0.00016979,2]
[399814335,1766694644706,-1000.0,0.00016981,2]
[399814336,1766694644715,-1000.0,0.00016981,2]
[399814337,1766694644725,-150.0,0.00016986,2]
[399814338,1766694644735,-150.0,0.00016986,2]
[399814339,1766694644744,-150.0,0.00016986,2]
[399814340,1766694644753,-150.0,0.00016986,2]
[399814341,1766694644763,-150.0,0.00016986,2]
[399814342,1766694644772,-150.0,0.00016986,2]
[399814343,1766694644781,-150.0,0.00016986,2]
[399814344,1766694644791,-150.0,0.00016986,2]
[399814345,1766694644805,-150.0,0.00016986,2]
[399814346,1766694644815,-150.0,0.00016986,2]
[399814347,1766694644824,-150.00000001,0.00016986,2]
[399814348,1766694644833,-150.0,0.00016986,2]
[399814349,1766694644844,-150.0,0.00016986,2]
[399814350,1766694644853,-2000.0,0.00016989,2]
[399814351,1766694644863,-2000.0,0.00016989,2]
[399814352,1766694644873,-2000.0,0.00016989,2]
[399814353,1766694644882,-2000.0,0.00016989,2]
[399814354,1766694644892,-2000.0,0.00016989,2]
[399814355,1766694644901,-2000.0,0.00016989,2]
[399814356,1766694644910,-1000.0,0.00016989,2]
[399814357,1766694644920,-1000.0,0.00016989,2]
[399814358,1766694644929,-1000.0,0.00016989,2]
[399814359,1766694644939,-1000.0,0.00016989,2]
[399814360,1766694644948,-1000.0,0.00016989,2]
[399814361,1766694644958,-1000.0,0.00016989,2]
[399814362,1766694644968,-1000.0,0.00016989,2]
[399814363,1766694644977,-916.272,0.00016989,2]
[399814364,1766694644987,-1000.0,0.00016989,2]
[399814365,1766694644996,-1000.0,0.00016989,2]
[399814366,1766694645006,-1000.0,0.00016989,2]
[399814367,1766694645015,-1000.0,0.00016989,2]
[399814368,1766694645025,-1000.0,0.00016989,2]
[399814369,1766694645035,-1000.0,0.00016989,2]
[399814370,1766694645044,-1000.0,0.00016989,2]
[399814371,1766694645053,-1000.0,0.00016989,2]
[399814372,1766694645063,-1000.0,0.00016989,2]
[399814373,1766694645072,-1000.0,0.00016989,2]
[399814374,1766694645082,-1000.0,0.00016989,2]
[399814375,1766694645108,-1000.0,0.00016989,2]
[399814376,1766694645118,-1000.0,0.00016989,2]
[399814377,1766694645128,-347.511,0.00016989,2]
[399814378,1766694645139,-1000.0,0.0001699,2]
[399814379,1766694645149,-151.0,0.00016997,2]
[399814380,1766694645159,-252.0,0.00016998,2]
[399814381,1766694645169,-28757.2950121,0.00016999,2]
[399814382,1766694645180,-300.0,0.00016999,2]
[399814383,1766694645190,-3153.559665,0.00016999,2]
[399814384,1766694645200,-3485.0855708,0.00016999,2]
[399814385,1766694645210,-334.58918112,0.00016999,2]
[399814386,1766694645220,-1307.5946699,0.00016999,2]
[399814387,1766694645230,-431.79735166,0.00016999,2]
[399814388,1766694645241,-25092.7774115,0.00016999,2]
[399814389,1766694645251,-300.0,0.00016999,2]
[399814390,1766694645261,-4702.9611961,0.00016999,2]
[399814391,1766694645271,-300.0,0.00016999,2]
[399814392,1766694645282,-715.31,0.00016999,2]
[399814393,1766694645292,-715.31,0.00016999,2]
[399814394,1766694645302,-715.31,0.00016999,2]
[399814395,1766694645312,-715.31,0.00016999,2]
[399814396,1766694645322,-715.31,0.00016999,2]
[399814397,1766694645332,-715.31,0.00016999,2]
[399814398,1766694645343,-715.31,0.00016999,2]
[399814399,1766694645353,-715.31,0.00016999,2]
[399814400,1766694645363,-715.31,0.00016999,2]
[399814401,1766694645372,-715.31,0.00016999,2]
[399814402,1766694645382,-715.31,0.00016999,2]
[399814403,1766694645392,-715.31,0.00016999,2]
[399814404,1766694645402,-715.31,0.00016999,2]
[399814405,1766694645412,-715.31,0.00016999,2]
[399814406,1766694645422,-715.31,0.00016999,2]
[399814407,1766694645432,-715.31,0.00016999,2]
[399814408,1766694645442,-715.31,0.00016999,2]
[399814409,1766694645458,-715.37,0.00016999,2]
[399814410,1766694645467,-300.0,0.00016999,2]
[399814411,1766694645477,-2965504.51419744,0.00017,2]
[399814413,1766694645579,-97337.96589887,0.00017,2]
[399814422,1766694646518,-21.39866142,0.000169,2]
[399814423,1766694646577,-1762.677248,0.000169,2]
[399814424,1766694646593,-611.755986,0.000169,2]
[399814425,1766694646605,-12558.16716273,0.000169,2]
[399814426,1766694647278,-419.99999999,0.00016614,2]
[399814427,1766694647292,-964.8,0.00016614,2]
[399814428,1766694697879,-166.66,0.00012177,2]
[399814429,1766694706877,173.75,0.00031507,120]
[399814432,1766695036283,162.95,7.076e-05,2]
[399814433,1766695036405,162.95,8.255e-05,2]
[399814434,1766695036505,162.95,9.434e-05,2]
[399814435,1766695036607,162.95,0.00010613,2]
[399814436,1766695037015,160.53912762,0.00011793,2]
[399814437,1766695037038,2.41087238,0.00011793,2]
[399814439,1766695807679,-156.63631247,0.00012077,2]
[399814440,1766695807706,-161.42674057,0.00012077,2]
[399814442,1766695831708,-87.57325943,0.00012077,2]
[399814443,1766695831719,-115.944,0.00012177,2]
[399814444,1766695831729,-2880.57392792,0.00012177,2]
[399814445,1766695831738,-250.0,0.00012177,2]
[399814446,1766695831748,-195.0,0.00012177,2]
[399814447,1766695831757,-195.0,0.00012177,2]
[399814448,1766695831767,-162.95,0.00012972,2]
[399814449,1766695831776,-195.0,0.00013285,2]
[399814450,1766695831787,-300.0,0.00013393,2]
[399814451,1766695831796,-1200.0,0.00013393,2]
[399814452,1766695831807,-300.0,0.00013394,2]